bitfinex/quotes_SOLUSD_20250415
["timestamp","ask_amount","ask_price","bid_price","bid_amount"]
[1744731649949,35.66122898,130.22,130.21,0.063]
[1744731650154,43.34052898,130.22,130.21,0.063]
[1744731651365,35.66122898,130.22,130.21,0.063]
[1744731651559,35.66122898,130.24,130.21,0.063]
[1744731651855,35.66122898,130.23,130.21,0.063]
[1744731653083,35.66122898,130.24,130.21,0.063]
[1744731653450,35.66122898,130.26,130.22,35.66122898]
[1744731653657,35.66122898,130.27,130.23,12.36]
[1744731653857,35.66122898,130.24,130.23,12.36]
[1744731654058,35.66122898,130.24,130.21,0.063]
[1744731654269,35.66122898,130.26,130.21,35.72422898]
[1744731655359,35.66122898,130.26,130.22,7.6793]
[1744731655864,81.6,130.25,130.22,7.6793]
[1744731656265,81.6,130.25,130.22,43.34052898]
[1744731658377,81.6,130.25,130.23,35.66122898]
[1744731658577,81.6,130.27,130.24,48.02122898]
[1744731658770,81.6,130.29,130.26,35.66122898]
[1744731658955,81.6,130.29,130.27,35.66122898]
[1744731659373,81.6,130.29,130.28,35.66122898]
[1744731659575,81.6,130.29,130.28,43.33692898]
[1744731659774,81.6,130.29,130.27,43.33732898]
[1744731659974,81.6,130.29,130.27,7.6761]
[1744731660176,117.26122898,130.29,130.24,48.02122898]
[1744731660400,35.66122898,130.27,130.24,12.36]
[1744731661276,35.66122898,130.27,130.24,20.0379]
[1744731661476,35.66122898,130.27,130.24,12.36]
[1744731661668,35.66122898,130.26,130.24,12.36]
[1744731662978,81.6,130.23,130.21,0.063]
[1744731663178,117.26122898,130.22,130.2,0.063]
[1744731663382,81.6,130.24,130.21,35.66122898]
[1744731663579,81.6,130.24,130.22,35.66122898]
[1744731663967,117.26122898,130.24,130.2,48.06422898]
[1744731664202,81.6,130.24,130.2,12.403]
[1744731664376,89.2781,130.24,130.2,48.06422898]
[1744731664576,117.26122898,130.24,130.2,12.403]
[1744731664783,117.26122898,130.24,130.2,48.06422898]
[1744731665091,117.26122898,130.24,130.2,55.74462898]
[1744731665592,124.93942898,130.24,130.2,12.403]
[1744731665983,117.26122898,130.24,130.2,48.06422898]
[1744731666180,81.6,130.24,130.2,55.74442898]
[1744731666400,81.6,130.24,130.22,35.66122898]
[1744731666574,81.6,130.24,130.23,35.66122898]
[1744731666780,81.6,130.24,130.22,35.66122898]
[1744731668189,81.6,130.24,130.22,43.34042898]
[1744731668494,81.6,130.24,130.22,35.66122898]
[1744731668991,81.6,130.24,130.22,43.34042898]
[1744731669393,81.6,130.24,130.23,35.66122898]
[1744731670179,81.6,130.26,130.24,7.6781]
[1744731670386,81.6,130.26,130.2,12.403]
[1744731670689,81.6,130.26,130.22,35.66122898]
[1744731670997,81.6,130.26,130.23,35.66122898]
[1744731671407,81.6,130.26,130.22,35.66122898]
[1744731672287,81.6,130.26,130.22,43.34012898]
[1744731672997,81.6,130.26,130.25,35.66122898]
[1744731673196,81.6,130.26,130.25,48.00122898]
[1744731674299,81.6,130.26,130.25,55.67872898]
[1744731675918,81.6,130.26,130.25,20.0175]
[1744731676416,81.6,130.26,130.25,12.34]
[1744731677603,81.6,130.26,130.25,20.0175]
[1744731677797,81.6,130.26,130.25,55.67872898]
[1744731678302,81.6,130.26,130.25,12.34]
[1744731679721,81.6,130.26,130.25,55.67872898]
[1744731680704,81.6,130.26,130.25,12.34]
[1744731682404,43.33812898,130.26,130.21,12.34]
[1744731682706,35.66122898,130.24,130.21,12.34]
[1744731682945,81.6,130.25,130.21,48.00122898]
[1744731683104,81.6,130.25,130.23,35.66122898]
[1744731683507,81.6,130.25,130.22,35.66122898]
[1744731684534,81.6,130.25,130.21,55.68062898]
[1744731684836,89.2775,130.25,130.21,55.68062898]
[1744731685129,89.2775,130.25,130.22,35.66122898]
[1744731685130,81.6,130.25,130.22,35.66122898]
[1744731685632,35.66122898,130.24,130.21,12.34]
[1744731685811,81.6,130.25,130.21,20.0197]
[1744731686026,117.26122898,130.25,130.21,20.0197]
[1744731686211,117.26122898,130.25,130.21,12.34]
[1744731686212,117.26122898,130.24,130.21,12.34]
[1744731686528,35.66122898,130.23,130.21,12.34]
[1744731686743,117.26122898,130.22,130.21,12.34]
[1744731687035,81.6,130.21,130.2,0.063]
[1744731687211,35.66122898,130.18,130.17,0.063]
[1744731687411,37.17172898,130.18,130.17,0.063]
[1744731688514,44.85332898,130.18,130.17,0.063]
[1744731688915,37.17172898,130.18,130.17,0.063]
[1744731689433,35.66122898,130.18,130.17,0.063]
[1744731690826,61.99247784,130.18,130.17,0.063]
[1744731691216,87.99247784,130.18,130.17,0.063]
[1744731691422,20.19104886,130.17,130.15,0.063]
[1744731691604,35.66122898,130.16,130.15,0.063]
[1744731692934,43.34402898,130.16,130.15,0.063]
[1744731693929,35.66122898,130.16,130.15,0.063]
[1744731695030,43.34402898,130.16,130.15,0.063]
[1744731695943,35.66122898,130.16,130.15,0.063]
[1744731696107,87.99367784,130.16,130.15,0.0001]
[1744731696313,18.64964886,130.14,130.13,0.063]
[1744731696531,54.31087784,130.14,130.13,0.063]
[1744731697010,43.34522898,130.14,130.13,0.063]
[1744731697212,1.5074,130.16,130.13,0.063]
[1744731697425,35.66122898,130.17,130.13,35.72422898]
[1744731697633,35.66122898,130.16,130.13,0.063]
[1744731698136,35.66122898,130.14,130.13,0.063]
[1744731698634,35.66122898,130.17,130.13,0.063]
[1744731698827,14.2432,130.18,130.13,0.063]
[1744731699029,35.66122898,130.16,130.13,0.063]
[1744731700735,35.66122898,130.15,130.13,0.063]
[1744731701235,35.66122898,130.16,130.13,0.063]
[1744731702537,35.66122898,130.15,130.13,0.063]
[1744731703121,35.66122898,130.16,130.13,0.063]
[1744731706536,35.66122898,130.14,130.13,0.063]
[1744731707243,35.66122898,130.15,130.13,0.063]
[1744731707437,35.66122898,130.17,130.13,0.063]
[1744731707641,7.6819,130.18,130.13,0.063]
[1744731707838,35.66122898,130.15,130.13,0.063]
[1744731708638,35.66122898,130.14,130.13,0.063]
[1744731709745,43.34522898,130.14,130.13,0.063]
[1744731711140,35.66122898,130.14,130.13,0.063]
[1744731712041,7.681,130.19,130.13,35.72422898]
[1744731712255,35.66122898,130.18,130.14,35.66122898]
[1744731713253,35.66122898,130.18,130.15,7.6834]
[1744731713450,35.66122898,130.18,130.14,43.34492898]
[1744731713634,35.66122898,130.16,130.13,7.7473]
[1744731713830,35.66122898,130.17,130.13,7.7473]
[1744731714231,26.0,130.21,130.15,35.66122898]
[1744731714460,35.66122898,130.21,130.16,35.66122898]
[1744731714640,35.66122898,130.2,130.16,35.66122898]
[1744731714841,35.66122898,130.19,130.15,35.66122898]
[1744731715370,35.66122898,130.19,130.16,7.6828]
[1744731715527,43.34232898,130.19,130.15,35.66122898]
[1744731715728,35.66122898,130.18,130.14,20.0437]
[1744731716032,117.26122898,130.17,130.14,20.0437]
[1744731717152,103.91306417,130.17,130.14,20.0437]
[1744731717350,111.59546417,130.17,130.14,12.36]
[1744731718651,103.91306417,130.16,130.14,12.36]
[1744731718856,81.6,130.16,130.14,12.36]
[1744731719533,81.6,130.16,130.15,22.31306417]
[1744731719753,81.6,130.19,130.15,22.31306417]
[1744731719952,103.91306417,130.19,130.14,20.0439]
[1744731720265,103.91306417,130.19,130.15,22.31306417]
[1744731720462,81.6,130.19,130.15,22.31306417]
[1744731720631,81.6,130.19,130.18,22.31306417]
[1744731721140,81.6,130.19,130.18,35.67287161]
[1744731722545,81.6,130.19,130.17,35.67287161]
[1744731723450,81.6,130.19,130.17,7.6817]
[1744731724057,117.27287161,130.18,130.14,12.36]
[1744731724237,81.6,130.17,130.14,20.0438]
[1744731724557,81.6,130.17,130.14,55.71667161]
[1744731724754,81.6,130.17,130.16,35.67287161]
[1744731724958,81.6,130.17,130.15,35.67287161]
[1744731725447,81.6,130.17,130.15,7.6829]
[1744731725653,81.6,130.17,130.15,43.35577161]
[1744731726236,81.6,130.17,130.16,35.67287161]
[1744731726436,81.6,130.2,130.16,35.67287161]
[1744731726636,81.6,130.2,130.17,35.67287161]
[1744731726836,81.6,130.19,130.17,35.67287161]
[1744731727037,81.6,130.19,130.16,35.67287161]
[1744731727233,81.6,130.19,130.15,35.67287161]
[1744731727456,89.2818,130.18,130.14,12.36]
[1744731727657,117.27287161,130.17,130.14,12.36]
[1744731728053,81.6,130.17,130.14,55.71677161]
[1744731728254,81.6,130.17,130.14,20.0439]
[1744731728739,117.27287161,130.17,130.14,12.36]
[1744731729141,81.6,130.17,130.14,55.71667161]
[1744731729349,81.6,130.17,130.15,35.67287161]
[1744731729551,81.6,130.17,130.16,7.6828]
[1744731729747,81.6,130.21,130.16,75.80257161]
[1744731730064,38.3745,130.3,130.2,71.34574322]
[1744731730065,81.6,130.26,130.2,71.34574322]
[1744731730246,81.6,130.26,130.23,35.67287161]
[1744731730758,81.6,130.26,130.21,12.34]
[1744731731247,81.6,130.26,130.22,35.67287161]
[1744731731455,81.6,130.26,130.23,35.67287161]
[1744731732061,81.6,130.26,130.22,43.35177161]
[1744731732954,35.67287161,130.25,130.21,55.69247161]
[1744731733273,117.27287161,130.23,130.21,12.34]
[1744731733461,117.27287161,130.22,130.17,12.34]
[1744731733767,35.67287161,130.2,130.17,20.022]
[1744731733967,35.67287161,130.2,130.17,12.34]
[1744731734868,35.67287161,130.19,130.17,12.34]
[1744731735043,117.27287161,130.2,130.17,20.0222]
[1744731735244,81.6,130.2,130.17,20.0222]
[1744731735549,117.27287161,130.2,130.17,12.34]
[1744731736353,117.27287161,130.2,130.17,20.0222]
[1744731736863,81.6,130.2,130.17,20.0222]
[1744731737066,81.6,130.2,130.17,55.69507161]
[1744731737750,81.6,130.22,130.19,35.67287161]
[1744731737950,81.6,130.22,130.2,35.67287161]
[1744731738160,81.6,130.22,130.19,35.67287161]
[1744731738746,81.6,130.22,130.18,35.67287161]
[1744731739044,81.6,130.22,130.19,7.681]
[1744731739772,81.6,130.22,130.19,43.35387161]
[1744731740274,81.6,130.22,130.19,7.681]
[1744731741176,81.6,130.22,130.19,43.35387161]
[1744731741384,81.6,130.22,130.2,35.67287161]
[1744731742185,0.03,130.24,130.2,35.67287161]
[1744731742186,0.03,130.24,130.21,43.35277161]
[1744731742390,0.03,130.26,130.23,61.67287161]
[1744731742691,0.03,130.26,130.25,35.67287161]
[1744731743473,0.03,130.26,130.24,18.64964886]
[1744731743682,0.03,130.26,130.23,26.0]
[1744731744285,0.03,130.26,130.24,7.6781]
[1744731744774,35.67287161,130.23,130.22,12.34]
[1744731745288,81.6,130.24,130.22,12.34]
[1744731745490,81.6,130.24,130.22,55.69197161]
[1744731745674,0.03,130.26,130.25,35.67287161]
[1744731746568,0.03,130.26,130.24,7.6776]
[1744731746789,0.03,130.26,130.23,43.35137161]
[1744731747588,0.03,130.26,130.22,55.69197161]
[1744731747770,117.30287161,130.26,130.22,55.69197161]
[1744731748294,81.63,130.26,130.22,55.69197161]
[1744731748469,81.63,130.26,130.23,35.67287161]
[1744731749373,81.63,130.26,130.25,35.67287161]
[1744731749374,0.03,130.26,130.25,35.67287161]
[1744731750180,0.03,130.26,130.22,39.2173]
[1744731750479,0.03,130.26,130.23,35.67287161]
[1744731750680,81.6,130.25,130.22,55.69197161]
[1744731752498,81.6,130.25,130.23,35.67287161]
[1744731752701,117.27287161,130.24,130.22,12.34]
[1744731752906,35.67287161,130.23,130.2,239.6]
[1744731753076,117.27287161,130.22,130.2,239.6]
[1744731753275,81.6,130.22,130.2,239.6]
[1744731753801,81.6,130.21,130.2,239.6]
[1744731754411,117.27287161,130.21,130.18,12.32]
[1744731754791,124.95307161,130.21,130.18,12.32]
[1744731754987,117.27287161,130.2,130.18,12.32]
[1744731755192,81.6,130.19,130.18,12.32]
[1744731756512,81.6,130.18,130.13,6.6943]
[1744731756687,35.67287161,130.19,130.14,55.67667161]
[1744731756688,81.6,130.17,130.14,55.67667161]
[1744731757015,81.6,130.17,130.16,35.67287161]
[1744731757190,81.6,130.17,130.15,35.67287161]
[1744731757391,81.6,130.17,130.16,35.67287161]
[1744731758312,81.6,130.2,130.16,62.56277161]
[1744731758486,81.6,130.2,130.19,35.67287161]
[1744731758686,81.6,130.2,130.19,12.32]
[1744731758892,124.95327161,130.2,130.19,12.32]
[1744731759507,43.35327161,130.2,130.19,12.32]
[1744731759714,43.35327161,130.2,130.15,55.67627161]
[1744731759911,117.27287161,130.19,130.15,55.67627161]
[1744731760108,81.6,130.19,130.17,35.67287161]
[1744731760301,81.6,130.19,130.18,7.6816]
[1744731760693,81.6,130.19,130.18,43.35447161]
[1744731760896,81.6,130.19,130.18,7.6816]
[1744731761521,81.6,130.19,130.15,31.5286]
[1744731761725,81.6,130.19,130.16,43.35537161]
[1744731762408,81.6,130.19,130.17,35.67287161]
[1744731762604,81.6,130.19,130.16,43.35537161]
[1744731763420,81.6,130.19,130.16,7.6825]
[1744731764525,117.27287161,130.19,130.16,7.6825]
[1744731764825,81.6,130.19,130.16,7.6825]
[1744731765035,81.6,130.19,130.16,43.35537161]
[1744731766534,81.6,130.19,130.17,35.67287161]
[1744731766833,81.6,130.19,130.17,43.35447161]
[1744731767017,81.6,130.19,130.18,35.67287161]
[1744731767421,81.6,130.19,130.17,43.35447161]
[1744731769032,81.6,130.19,130.18,12.32]
[1744731769819,81.6,130.19,130.18,34.61915674]
[1744731770018,27.5789,130.24,130.18,34.61915674]
[1744731770019,81.6,130.22,130.18,34.61915674]
[1744731770219,81.6,130.22,130.2,22.29915674]
[1744731771134,81.6,130.22,130.21,7.6799]
[1744731771343,81.6,130.22,130.21,29.97905674]
[1744731772005,81.6,130.22,130.18,31.5237]
[1744731772204,81.6,130.21,130.18,12.32]
[1744731772443,22.29915674,130.2,130.18,12.32]
[1744731772937,81.6,130.19,130.18,20.0015]
[1744731774007,81.6,130.19,130.18,12.32]
[1744731778736,43.36144525,130.2,130.18,12.32]
[1744731778917,35.68084525,130.2,130.18,12.32]
[1744731779329,35.68084525,130.21,130.18,12.32]
[1744731779535,35.68084525,130.22,130.18,12.32]
[1744731779718,81.6,130.21,130.18,12.32]
[1744731779917,117.28084525,130.21,130.18,20.0014]
[1744731780521,81.6,130.21,130.18,20.0014]
[1744731781031,81.6,130.21,130.18,12.32]
[1744731781237,117.28084525,130.21,130.18,12.32]
[1744731781438,35.68084525,130.19,130.18,12.32]
[1744731781822,35.68084525,130.2,130.18,12.32]
[1744731782027,43.36144525,130.2,130.18,12.32]
[1744731782738,35.68084525,130.2,130.18,12.32]
[1744731782933,35.68084525,130.21,130.18,12.32]
[1744731783136,35.68084525,130.23,130.18,55.68224525]
[1744731783735,81.6,130.22,130.2,35.68084525]
[1744731784112,81.6,130.22,130.21,7.6799]
[1744731784514,81.6,130.22,130.2,35.68084525]
[1744731784717,81.6,130.22,130.2,7.6802]
[1744731785436,35.68084525,130.21,130.18,20.0014]
[1744731786141,81.6,130.2,130.18,12.32]
[1744731786335,81.6,130.2,130.18,20.0014]
[1744731787738,81.6,130.2,130.18,55.68224525]
[1744731790048,81.6,130.23,130.19,35.68084525]
[1744731790447,117.28084525,130.23,130.19,35.68084525]
[1744731790738,35.68084525,130.21,130.18,20.0014]
[1744731790950,35.68084525,130.2,130.18,12.32]
[1744731791541,43.36084525,130.21,130.18,12.32]
[1744731791840,35.68084525,130.21,130.18,12.32]
[1744731792249,43.36084525,130.21,130.18,12.32]
[1744731792549,35.68084525,130.19,130.14,12.3]
[1744731792723,35.68084525,130.17,130.14,12.3]
[1744731792924,81.6,130.16,130.14,12.3]
[1744731793951,81.6,130.16,130.14,19.9839]
[1744731795640,81.6,130.16,130.14,42.29854943]
[1744731796029,81.6,130.16,130.14,19.9839]
[1744731796448,81.6,130.16,130.14,12.3]
[1744731796449,103.91464943,130.16,130.14,12.3]
[1744731797152,111.59754943,130.16,130.14,12.3]
[1744731797832,103.91464943,130.16,130.14,12.3]
[1744731799444,81.6,130.19,130.15,22.31464943]
[1744731799629,103.91464943,130.19,130.15,22.31464943]
[1744731799833,22.31464943,130.16,130.14,12.3]
[1744731800035,22.31464943,130.15,130.14,12.3]
[1744731800449,22.31464943,130.16,130.14,12.3]
[1744731800854,22.31464943,130.15,130.14,12.3]
[1744731801036,81.6,130.18,130.14,12.3]
[1744731801234,22.31464943,130.15,130.14,12.3]
[1744731801956,29.99804943,130.15,130.14,12.3]
[1744731802549,29.99804943,130.15,130.13,0.063]
[1744731802957,103.91464943,130.14,130.13,0.063]
[1744731803133,22.31464943,130.14,130.13,0.063]
[1744731803938,29.99864943,130.14,130.13,0.063]
[1744731804958,22.31464943,130.14,130.13,0.063]
[1744731805751,3.99432511,130.18,130.13,0.063]
[1744731805946,22.31464943,130.18,130.14,29.99864943]
[1744731806147,22.31464943,130.18,130.13,7.7473]
[1744731806350,22.31464943,130.18,130.13,30.06194943]
[1744731806741,22.31464943,130.18,130.14,22.31464943]
[1744731806941,22.31464943,130.18,130.15,12.3]
[1744731807747,22.31464943,130.19,130.15,19.9834]
[1744731807959,22.31464943,130.2,130.16,22.31464943]
[1744731808346,29.99514943,130.2,130.16,22.31464943]
[1744731808760,29.99514943,130.2,130.15,42.29804943]
[1744731809961,22.31464943,130.18,130.15,12.3]
[1744731810139,103.91464943,130.17,130.15,12.3]
[1744731810341,81.6,130.16,130.13,0.063]
[1744731810640,22.31464943,130.14,130.13,0.063]
[1744731812744,29.99864943,130.14,130.13,0.063]
[1744731814248,7.6837,130.15,130.13,0.063]
[1744731814449,22.31464943,130.14,130.13,0.063]
[1744731816466,29.99864943,130.14,130.13,0.063]
[1744731821045,68.64829829,130.14,130.13,0.063]
[1744731821864,90.96294772,130.14,130.13,0.063]
[1744731822067,18.64964886,130.13,130.12,0.063]
[1744731822255,63.27894772,130.13,130.12,0.063]
[1744731822453,89.27894772,130.13,130.12,0.063]
[1744731822657,26.0,130.11,130.1,0.063]
[1744731822849,48.31464943,130.11,130.1,0.063]
[1744731823963,56.00044943,130.11,130.1,0.063]
[1744731827078,111.60014943,130.12,130.1,0.063]
[1744731827576,81.6,130.11,130.1,0.063]
[1744731828076,81.6,130.11,130.1,34.67764943]
[1744731828269,81.6,130.11,130.1,12.363]
[1744731829560,81.6,130.11,130.1,20.0493]
[1744731829878,81.6,130.11,130.1,12.363]
[1744731831379,30.00044943,130.11,130.1,0.063]
[1744731833859,22.31464943,130.11,130.1,0.063]
[1744731834062,22.31464943,130.12,130.1,0.063]
[1744731835069,30.00044943,130.11,130.1,0.063]
[1744731837675,30.00044943,130.11,130.07,0.063]
[1744731837676,26.0,130.08,130.07,0.063]
[1744731837872,48.31464943,130.08,130.07,0.063]
[1744731838076,22.31464943,130.09,130.07,0.063]
[1744731838262,22.31464943,130.08,130.07,0.063]
[1744731839985,30.00214943,130.08,130.07,0.063]
[1744731841388,22.31464943,130.08,130.07,0.063]
[1744731841567,30.00184943,130.09,130.07,0.063]
[1744731841886,22.31464943,130.09,130.07,0.063]
[1744731842262,30.00124943,130.1,130.07,0.063]
[1744731842468,7.6866,130.1,130.07,0.063]
[1744731842682,30.00124943,130.1,130.07,0.063]
[1744731844485,22.31464943,130.1,130.07,0.063]
[1744731844668,7.6859,130.11,130.07,0.063]
[1744731844873,56.00004943,130.12,130.07,22.37764943]
[1744731845084,19.206,130.17,130.1,22.31464943]
[1744731845283,19.206,130.17,130.11,34.59464943]
[1744731845284,29.99744943,130.16,130.11,34.59464943]
[1744731845485,7.7119,130.18,130.12,22.31464943]
[1744731845792,7.7119,130.18,130.11,18.374]
[1744731845793,0.03,130.18,130.15,22.31464943]
[1744731845995,81.6,130.16,130.14,23.97844943]
[1744731846585,81.63,130.18,130.14,31.66204943]
[1744731847589,81.63,130.18,130.15,22.31464943]
[1744731847980,81.63,130.18,130.16,34.59464943]
[1744731848583,0.03,130.18,130.17,29.99684943]
[1744731848893,0.03,130.18,130.17,7.6822]
[1744731849289,0.03,130.18,130.16,42.27724943]
[1744731850292,0.03,130.18,130.16,12.28]
[1744731850492,22.31464943,130.17,130.16,12.28]
[1744731850693,22.31464943,130.17,130.12,12.28]
[1744731850900,22.31464943,130.13,130.12,12.28]
[1744731851189,81.6,130.12,130.07,12.343]
[1744731851393,22.31464943,130.08,130.07,12.343]
[1744731851787,81.6,130.11,130.07,12.343]
[1744731851993,22.31464943,130.09,130.07,12.343]
[1744731852381,22.31464943,130.1,130.07,12.343]
[1744731852897,22.31464943,130.09,130.07,12.343]
[1744731853102,22.31464943,130.08,130.07,12.343]
[1744731855098,7.6852,130.12,130.07,12.343]
[1744731855376,22.31464943,130.1,130.07,12.343]
[1744731855998,81.6,130.11,130.07,12.343]
[1744731855999,22.31464943,130.09,130.07,12.343]
[1744731856209,81.6,130.08,130.07,12.343]
[1744731856381,103.91464943,130.11,130.07,12.343]
[1744731857386,103.91464943,130.11,130.07,20.0311]
[1744731858182,22.31464943,130.1,130.07,20.0311]
[1744731859395,22.31464943,130.09,130.07,12.343]
[1744731859786,22.31464943,130.1,130.07,12.343]
[1744731859999,22.31464943,130.1,130.07,20.0311]
[1744731860382,81.63,130.16,130.09,28.39324943]
[1744731860693,81.63,130.16,130.14,22.31464943]
[1744731860887,81.63,130.16,130.13,34.59464943]
[1744731862307,81.63,130.16,130.13,42.27874943]
[1744731863207,81.63,130.16,130.13,12.28]
[1744731863410,103.94464943,130.16,130.13,12.28]
[1744731863995,22.31464943,130.15,130.13,12.28]
[1744731864507,111.62744943,130.16,130.13,12.28]
[1744731864895,22.31464943,130.15,130.13,12.28]
[1744731865106,111.62744943,130.16,130.13,12.28]
[1744731865710,81.63,130.16,130.13,12.28]
[1744731865907,81.63,130.16,130.13,19.9644]
[1744731866102,22.31464943,130.15,130.13,12.28]
[1744731866307,22.31464943,130.14,130.13,12.28]
[1744731866814,29.99864943,130.14,130.13,12.28]
[1744731868409,29.99864943,130.14,130.09,42.28144943]
[1744731868617,103.91464943,130.13,130.09,42.28144943]
[1744731868919,81.6,130.13,130.09,42.28144943]
[1744731869215,103.91464943,130.13,130.09,42.28144943]
[1744731869810,81.6,130.13,130.09,42.28144943]
[1744731870313,81.6,130.13,130.09,19.9668]
[1744731870509,81.6,130.13,130.09,42.28144943]
[1744731871213,81.6,130.13,130.1,22.31464943]
[1744731871422,81.6,130.13,130.12,22.31464943]
[1744731872218,0.03,130.16,130.12,22.31464943]
[1744731872410,81.63,130.16,130.13,22.31464943]
[1744731872719,81.63,130.16,130.14,12.26]
[1744731872927,81.63,130.16,130.14,19.944]
[1744731873396,81.63,130.16,130.14,12.26]
[1744731873596,81.63,130.16,130.14,19.9439]
[1744731873808,81.63,130.16,130.14,12.26]
[1744731874218,103.94464943,130.16,130.14,12.26]
[1744731874798,81.63,130.16,130.14,12.26]
[1744731875197,81.63,130.16,130.14,19.944]
[1744731876111,81.63,130.16,130.14,12.26]
[1744731876304,103.91464943,130.15,130.14,12.26]
[1744731876511,103.91464943,130.15,130.1,12.26]
[1744731876716,81.6,130.15,130.1,19.9463]
[1744731876926,103.91464943,130.15,130.1,42.26094943]
[1744731877096,81.6,130.15,130.12,22.31464943]
[1744731878234,81.6,130.15,130.11,22.31464943]
[1744731879330,81.6,130.15,130.11,29.99994943]
[1744731879616,111.59804943,130.15,130.1,42.26054943]
[1744731879802,22.31464943,130.14,130.1,42.26054943]
[1744731880002,22.31464943,130.13,130.1,12.26]
[1744731880204,81.6,130.12,130.1,12.26]
[1744731880407,81.6,130.12,130.11,22.31464943]
[1744731880624,81.6,130.12,130.1,42.26094943]
[1744731881918,81.6,130.12,130.1,19.9463]
[1744731882105,81.6,130.12,130.1,42.26094943]
[1744731883119,81.6,130.12,130.1,12.26]
[1744731883300,81.6,130.11,130.1,12.26]
[1744731883710,29.99984943,130.12,130.1,12.26]
[1744731884110,22.31464943,130.11,130.1,12.26]
[1744731886228,30.00044943,130.11,130.1,12.26]
[1744731887826,22.31464943,130.11,130.1,12.26]
[1744731888009,30.00044943,130.11,130.1,12.26]
[1744731890430,30.00044943,130.11,130.07,0.063]
[1744731890629,22.31464943,130.09,130.07,0.063]
[1744731892113,30.00134943,130.1,130.07,0.063]
[1744731894831,22.31464943,130.08,130.07,0.063]
[1744731895243,7.6867,130.1,130.07,0.063]
[1744731895451,81.6,130.09,130.08,22.31464943]
[1744731896858,81.6,130.09,130.08,30.00214943]
[1744731899126,81.6,130.12,130.08,30.00214943]
[1744731899456,81.6,130.12,130.11,22.31464943]
[1744731899739,22.31464943,130.14,130.11,12.26]
[1744731899941,89.2835,130.15,130.11,12.26]
[1744731900236,103.91464943,130.14,130.11,12.26]
[1744731900647,81.6,130.14,130.12,22.31464943]
[1744731901347,81.6,130.14,130.13,22.31464943]
[1744731902151,81.6,130.14,130.12,22.31464943]
[1744731903054,81.6,130.14,130.12,29.99934943]
[1744731903757,0.03,130.16,130.13,22.31464943]
[1744731903938,0.03,130.16,130.14,22.31464943]
[1744731904247,0.03,130.16,130.15,22.31464943]
[1744731904922,0.03,130.16,130.13,22.31464943]
[1744731905130,0.03,130.16,130.13,29.99924943]
[1744731905336,0.03,130.16,130.13,7.6846]
[1744731905532,22.31464943,130.15,130.12,12.24]
[1744731905734,103.91464943,130.14,130.12,12.24]
[1744731906739,81.6,130.14,130.12,12.24]
[1744731908253,81.6,130.14,130.12,19.925]
[1744731908630,81.6,130.14,130.13,22.31464943]
[1744731909330,81.6,130.14,130.13,29.99924943]
[1744731910246,81.6,130.14,130.12,34.55464943]
[1744731910450,81.6,130.14,130.12,42.23964943]
[1744731910953,81.6,130.14,130.13,22.31464943]
[1744731911331,81.6,130.14,130.13,29.99924943]
[1744731913453,81.6,130.14,130.13,31.61264943]
[1744731913637,0.03,130.16,130.13,31.61264943]
[1744731913831,0.03,130.16,130.13,9.298]
[1744731914038,0.03,130.16,130.15,22.31464943]
[1744731914753,0.03,130.16,130.14,22.31464943]